{"text_format":"3","workbook":"xlsx","n_sheets":3,"sheets":["9 класс","10 класс","11 класс"],"not_rendered":{"defined_names":3},"read":"whole","date_system":"1900"}

{"sheet":"9 класс","index":0,"n_rows":28,"n_cols":25,"rows_kept":28,"merged":[[1,0,1,16383]]}
[]
["Итоговый протокол  заключительнного этапа республиканской олимпиады школьников по арабскому языку в 2024-2025 учебном году"]
["№","Район","Название ОУ","Фамилия","Имя","Отчество","Класс","Класс участия","письм","устн","итог балл","макс балл","Статус","Учитель","Место работы учителя","дата рождения","Снилс"]
[1,"Приволжский ","МБОУ «Татаро-английская гимназия №16» Приволжского района г.Казани","Аль-Асри","Меск","Саиф Али",9,9,68.5,20,{"$f":"SUM(I4:J4)","v":88.5},100,"победитель","Шакирова Алсу Рашитовна","МБОУ «Татаро-английская гимназия №16» Приволжского района г.Казани","2009-12-10","206-526-173-43"]
[2,"Московский ","МБОУ «Гимназия №12 с татарским языком обучения имени Ф.Г.Аитовой» Московского района г. Казани","Хайрутдинова","Диляра","Ильмировна",9,10,67,20,87,100,"призер","Акташ Хусейин Эмин","МБОУ «Гимназия №12 с татарским языком обучения имени Ф.Г.Аитовой» Московского района г. Казани","2009-05-02",16396714100]
[3,"Нижнекамский ","МБОУ «Лицей-интернат №24» Нижнекамского муниципального района Республики Татарстан","Аллун","Ильяс","Фейсалович",7,9,66.5,19,85.5,100,"призер","Залалтдинов Линар Ринатович","МБОУ «Лицей-интернат №24» Нижнекамского муниципального района Республики Татарстан","2011-12-04","169-462-312-94"]
[4,"Набережные ","МБОУ «Лицей-интернат №79» г.Набережные Челны","Савельев","Сулейман","Евгеньевич",9,9,61,20,81,100,"призер","Нуриев Рустем Райнурович","МБОУ «Лицей-интернат №79» г.Набережные Челны","2008-12-28",20041213569]
[5,"Рыбно-Слободский","МБОУ «Рыбно-Слободская гимназия №1» Рыбно-Слободского муниципального района Республики Татарстан","Саймахмедов","Саид","Азамджонович",8,9,60,20,80,100,"призер","Самообразование","МБОУ «Рыбно-Слободская гимназия №1» Рыбно-Слободского муниципального района Республики Татарстан","2007-03-23","147-494-676-11"]
[6,"Азнакаевский ","МБОУ «Гимназия города Азнакаево\" Азнакаевского муниципального района Республики Татарстан","Хамруни","Мохамед-Абдельжелил",null,8,9,53.5,20,73.5,100,"призер","Хусаинова Файруза Василовна","МБОУ «Гимназия города Азнакаево\" Азнакаевского муниципального района Республики Татарстан","2010-12-03","177-256-836-09"]
[7,"Советский ","МБОУ \"Лицей №149 с татарским языком обучения\" Советского района г.Казани","Гатауллина","Марьям","Булатовна",8,9,18,19,69,100,"призер","Шангараева Миляуша Вагизовна","МБОУ \"Лицей №149 с татарским языком обучения\" Советского района г.Казани","2010-12-12",16365569801]
[8,"Советский ","МБОУ  «Гимназия №183» Советского района г.Казани","Абдуррахман","Ляян","Хусамовна",9,9,44.5,19,{"$f":"SUM(I11:J11)","v":63.5},100,"призер","Самоподготовка","МБОУ  «Гимназия №183» Советского района г.Казани","2010-02-16",17253617771]
[9,"Приволжский ","АНОО  «Международная школа Казани»","Нурутдинов","Салих","Ринатович",9,9,43.5,20,63.5,100,"призер","Гайнутдинова Гульнара Рашатовна","АНОО  «Международная школа Казани»","2008-07-28","163-378-484-94"]
[10,"Советский ","МБОУ  «Гимназия №183» Советского района г.Казани","Абдуррахман","Мира","Хусамовна",9,9,42.5,20,62.5,100,"призер","Самоподготовка","МБОУ  «Гимназия №183» Советского района г.Казани","2009-11-14",161277861175,{"$nulls":7}," "]
[11,"Советский ","МБОУ «Многопрофильная полилингвальная гимназия №180» Советского района г. Казани","Абуляйла","Рами","Халед",9,9,32,20,52,100,"призер","Каримуллина Гульзида Фанисовна","МБОУ «Многопрофильная полилингвальная гимназия №180» Советского района г. Казани","2009-09-09",17486704409,{"$nulls":7},"  "]
[12,"Азнакаевский ","МБОУ «Гимназия города Азнакаево» Азнакаевского муниципального района Республики Татарстан","Миннегалиева","Ясмин","Ильнуровна",8,9,31.5,19,50.5,100,"призер","Ибрагимова Чулпан Рафатовна","МБОУ «Гимназия города Азнакаево» Азнакаевского муниципального района Республики Татарстан","2010-05-12",16042239631]
[13,"Советский ","МБОУ «Многопрофильная полилингвальная гимназия №180» Советского района г. Казани","Шарафутдинова","Ангелина","Аммаровна",8,9,30.5,20,50.5,100,"призер","Каримуллина Гульзида Фанисовна","МБОУ «Многопрофильная полилингвальная гимназия №180» Советского района г. Казани","2010-09-19",19148095593]
[14,"Советский ","МБОУ «Многопрофильный лицей №185» Советского района г.Казани","Бехайри Джад","Ахмед","Хайсам",7,9,27,17,44,100,"призер","Бехайри Джад Хайсам","МБОУ «Многопрофильный лицей №185» Советского района г.Казани","2011-12-27",20981266172]
[15,"Советский ","МБОУ «Гимназия №174» Советского района г.Казани","Абдуалиев","Иброхим","Расулович",9,9,26.5,17,44,100,"призер","..","МБОУ «Гимназия №174» Советского района г.Казани","2009-10-31",20014822995]
[16,"Сармановский ","МБОУ \"Лешев-Тамакская основная общеобразовательная школа\" Сармановского муниципального района Республики Татарстан","Гараева","Набиля","Марсовна",6,9,21.5,20,{"$f":"SUM(I19:J19)","v":41.5},100,"участник","Давлетов Ринат Сиринович","МБОУ \"Лешев-Тамакская основная общеобразовательная школа\" Сармановского муниципального района Республики Татарстан","2012-05-23",17212379045]
[17,"Московский ","МБОУ \"Татарская гимназия №2 имени Ш. Марджани при КФУ\" Московского района г.Казани","Загидуллина","Зайнап","Айратовна",8,9,22,12,34,100,"участник","Камалова Танзиля Фатыховна","МБОУ \"Татарская гимназия №2 имени Ш. Марджани при КФУ\" Московского района г.Казани","2009-04-25",17122350525]
[18,"Советский ","МБОУ \"Гимназия №183\" Советского района г.Казани","Джебрил","Фатыма","Мохаммед",9,9,17.5,16,33.5,100,"участник","Самоподготовка","МБОУ \"Гимназия №183\" Советского района г.Казани","2009-09-25",17151793572]
[19,"Альметьевский ","МБОУ – Тайсугановская основная общеобразовательная школа  Альметьевского муниципального района Республики Татарстан","Минсабирова","Джаннет","Ниязовна",9,9,21,10,31,100,"участник","Минсабиров Нияз Усманович","МБОУ – Тайсугановская основная общеобразовательная школа  Альметьевского муниципального района Республики Татарстан","2009-03-13",16715428680]
[20,"Сармановский ","МБОУ \"Джалильская гимназия\" Сармановского муниципального района Республики Татарстан","Нуртдинова","Марьям","Равилевна",8,9,14,14,28,100,"участник","Шакирова Эльмира Финусовна","МБОУ \"Джалильская гимназия\" Сармановского муниципального района Республики Татарстан","2011-01-11",16878940950]
[21,"Московский ","МБОУ \"Татарская гимназия №2 имени Ш. Марджани при КФУ\" Московского района г.Казани","Гилязов","Инсаф","Диасович",8,9,11,14,25,100,"участник","Рахимов Эдгар Альбертович","МБОУ \"Татарская гимназия №2 имени Ш. Марджани при КФУ\" Московского района г.Казани","2010-10-22","173-292-887-97"]
[22,"Московский ","МБОУ \"Татарская гимназия №2 имени Ш. Марджани при КФУ\" Московского района г.Казани","Фасахова","Зайнаб","Рамилевна",9,9,10,10,20,100,"участник","Камалова Танзиля Фатыховна","МБОУ \"Татарская гимназия №2 имени Ш. Марджани при КФУ\" Московского района г.Казани","2009-09-19","167-675-163-13"]
[23,"Советский ","МБОУ \"Многопрофильная полилингвальная гимназия №180\" Советского района г. Казани","Хасанзада","Яхъя",null,9,9,15.5,0,15.5,100,"участник","Каримуллина Гульзида Фанисовна","МБОУ \"Многопрофильная полилингвальная гимназия №180\" Советского района г. Казани","2009-06-01",223340024511]
[24,"Авиастроительный ","ЧОУ \"Средняя общеобразовательная школа \"Усмания\" Авиастроительного района г. Казани","Дусматова","Мубина","Бахромовна",9,9,5.5,9,14.5,100,"участник","Салиманова Регина Рашитовна","ЧОУ \"Средняя общеобразовательная школа \"Усмания\" Авиастроительного района г. Казани","2009-01-29",54300100007]
[25,"Авиастроительный ","ЧОУ \"Средняя общеобразовательная школа \"Усмания\" Авиастроительного района г. Казани","Закиева","Аиша","Маратовна",8,9,6.5,8,14.5,100,"участник","Салиманова Регина Рашитовна","ЧОУ\"Средняя общеобразовательная школа \"Усмания\"Авиастроительного района г. Казани","2009-02-26",543001000008]

{"sheet":"10 класс","index":1,"n_rows":11,"n_cols":17,"rows_kept":11}
["Итоговый протокол  заключительнного этапа республиканской олимпиады школьников по арабскому языку в 2024-2025 учебном году"]
["№","Район","Название ОУ","Фамилия","Имя","Отчество","Класс","Класс участия","письм","уст","Итог балл","Макс балл","Статус","Учитель","Место работы учителя","Дата рождения","Снилс"]
[1,"Нурлатский ","МАОУ «Средняя общеобразовательная школа № 9» г.Нурлат Республики Татарстан","Фаддо","Хамза","Абдул Мунемович",10,10,64.5,19,{"$f":"SUM(I3:J3)","v":83.5},100,"победитель","Муратова Гузель Габдулхаковна","МАОУ «Средняя общеобразовательная школа № 9» г.Нурлат Республики Татарстан","2006-10-19","198-854-978-73"]
[2,"Ново-Савиновский ","МАОУ «Лицей-интернат №7» Ново-Савиновского района г. Казани","Хамед","Амир","Мохамадович",9,10,61.5,20,81.5,100,"призер","Гиззатуллин Тагир Радикович","МАОУ «Лицей-интернат №7» Ново-Савиновского района г. Казани","2008-05-18",58300700231]
[3,"Альметьевский ","МБОУ – Елховская средняя общеобразовательная школа Альметьевского муниципального района Республики Татарстан","Козеева","Мария","Сергеевна",10,10,41.5,20,61.5,100,"призер","Фасхутдинов Искандар Махмутович","МБОУ – Елховская средняя общеобразовательная школа Альметьевского муниципального района Республики Татарстан","2008-06-30",18397287835]
[4,"Сармановский ","ГАПОУ  \"Сармановский аграрный колледж\" Сармановского муниципального района Республики Татарстан","Нуртдинов","Ибрахим","Айдарович",10,10,37,14,51,100,"призер","Давлетов Ринат Сиринович","ГАПОУ  \"Сармановский аграрный колледж\" Сармановского муниципального района Республики Татарстан","2008-09-27",16530534248]
[5,"Нижнекамский ","МБОУ «Лицей-интернат №24» Нижнекамского муниципального района Республики Татарстан","Зиганшин","Билал","Газинурович",10,10,15.5,17,32.5,100,"участник","Тазиев Ренат Ильдарович","МБОУ «Лицей-интернат №24» Нижнекамского муниципального района Республики Татарстан","2007-12-17","155-696-251-04"]
[6,"Ново-Савиновский ","МАОУ  \"Лицей-интернат №7\" Ново-Савиновского района г. Казани","Аджигитов","Муса","Рафаэльевич",9,10,14.5,18,32.5,100,"участник","Гиззатуллин Тагир Радикович","МАОУ  \"Лицей-интернат №7\" Ново-Савиновского района г. Казани","2008-02-13",58300700211]
[7,"Авиастроительный ","ЧОУ \"Средняя общеобразовательная школа\"Усмания\"Авиастроительного района г. Казани","Назмутдинов","Рамазан","Рустемович",10,10,13,15,28,100,"участник","Салиманова Регина Рашитовна","ЧОУ \"Средняя общеобразовательная школа\"Усмания\"Авиастроительного района г. Казани","2008-08-05",17527988627]
[8,"Авиастроительный","ЧОУ \"Средняя общеобразовательная школа \"Усмания\"Авиастроительного района г. Казани","Хоссаин","Михаил","Али",10,10,6,12,18,100,"участник","Салиманова Регина Рашитовна","ЧОУ \"Средняя общеобразовательная школа \"Усмания\"Авиастроительного района г. Казани","2007-09-24",21281460430]
[9,"Авиастроительный ","ЧОУ \"Средняя общеобразовательная школа \"Усмания\"Авиастроительного района г. Казани","Ряжапова","Алсу","Ильясовна",10,10,3.5,2,5.5,100,"участник","Салиманова Регина Рашитовна","ЧОУ \"Средняя общеобразовательная школа \"Усмания\"Авиастроительного района г. Казани","2008-04-07",543001100002]

{"sheet":"11 класс","index":2,"n_rows":9,"n_cols":17,"rows_kept":9,"merged":[[0,0,0,16383]]}
["Итоговый протокол  заключительнного этапа республиканской олимпиады школьников по арабскому языку в 2024-2025 учебном году"]
[null,"Район","Название ОУ","Фамилия","Имя","Отчество","Класс","Класс участия","письм","уст","итог","макс б","статус","Учитель","Место работы учителя","дата рождения","Снилс"]
[1,"Нижнекамский ","МБОУ «Лицей-интернат №24» Нижнекамского муниципального района Республики Татарстан","Аллун","Абдульбари","Фейсалович",10,11,70.5,20,{"$f":"I3+J3","v":90.5},100,"победитель","Залалтдинов Линар Ринатович","МБОУ «Лицей-интернат №24» Нижнекамского муниципального района Республики Татарстан","2008-06-08","163-791-013-73"]
[2,"Кировский ","МБОУ«Гимназия №4 с татарским языком обучения» Кировского района г.Казани","Хасанов","Амир","Маратович",11,11,67,20,87,100,"призер","Камалова Милауша Гудаеровна","МБОУ«Гимназия №4 с татарским языком обучения» Кировского района г.Казани","2007-09-13",19167631699]
[3,"Московский ","МАОУ«Лицей-интернат №2» Московского района г.Казани","Бикмаев","Сулейман","Исламович",11,11,66,20,86,100,"призер","Хаббанов Ильмир Ильгизарович","МАОУ«Лицей-интернат №2» Московского района г.Казани","2007-11-09",18570632995]
[4,"Ютазинский ","МБОУ «Уруссинская средняя общеобразовательная школа № 3» Ютазинского муниципального района Республики Татарстан","Шарипова","Норинисо","Азимджоновна",11,11,36,14,50,100,"призер","Шаропов Ризвон Баходурович","МБОУ «Уруссинская средняя общеобразовательная школа № 3» Ютазинского муниципального района Республики Татарстан","2007-02-19","223-362-410-24"]
[5,"Арский ","МБОУ \"Шушмабашская средняя общеобразовательная школа\" Арского муниципального района Республики Татарстан","Хабибуллина","Малика","Рустемовна",11,11,30,16,46,100,"участник","Шаймарданова Разиля Габделнуровна","МБОУ  \"Шушмабашская средняя общеобразовательная школа\" Арского муниципального района Республики Татарстан","2006-10-08","180-977-167-10"]
[6,"Ютазинский ","МБОУ \"Уруссинская средняя общеобразовательная школа № 3\" Ютазинского муниципального района Республики Татарстан","Исоева","Марьям","Сухробовна",11,11,22,8,30,100,"участник","Шаропов Ризвон Баходурович","МБОУ \"Уруссинская средняя общеобразовательная школа № 3\" Ютазинского муниципального района Республики Татарстан","2006-05-17","162-875-165-93"]
[7,"Ютазинский ","МБОУ \"Уруссинская средняя общеобразовательная школа № 3\" Ютазинского муниципального района Республики Татарстан","Заирова","Гулнисо","Махмадлатифовна",11,11,11,8,19,100,"участник","Шаропов Ризвон Баходурович","МБОУ \"Уруссинская средняя общеобразовательная школа № 3\" Ютазинского муниципального района Республики Татарстан","2006-01-20","216-322-553-31"]